fUST/lending_fUST_20260204
["ID","MTS","AMOUNT","RATE_DAILY","PERIOD"]
[404477675,1770185439801,-620.22,0.00046297,10]
[404477676,1770185439811,-413.48,0.00046297,10]
[404477677,1770185439821,-151.0,0.00046297,120]
[404477678,1770185439831,-2067.90607372,0.00046297,4]
[404477701,1770185440427,-1326.34452536,0.00046297,4]
[404477703,1770185440441,-650.76259487,0.00046297,4]
[404478261,1770185446297,-3.51097502,0.00046297,4]
[404478278,1770185446457,-2104.85520833,0.00046297,4]
[404478443,1770185532994,410.0,0.00030137,120]
[404478445,1770186427134,-528.48847801,0.00024456,2]
[404478446,1770186445094,-673.91138094,0.00024211,2]
[404478451,1770186545101,-1791.47956787,0.00024211,2]
[404478452,1770186545124,-524.7814533,0.00025205,2]
[404478453,1770186550145,-10990.72652173,0.00025205,2]
[404478454,1770186550166,-3809.32140751,0.0003499,2]
[404478455,1770186550187,-40107.54483596,0.00035,5]
[404478456,1770186552110,-981.43235369,0.00035,5]
[404478464,1770186632045,-2191.05685603,0.00026849,2]
[404478465,1770186632057,-9053.25734229,0.00026849,2]
[404478466,1770186632066,-25484.74970115,0.00035,5]
[404478467,1770186632093,-611.94286328,0.00035,5]
[404478479,1770186638166,-500.0,0.00034999,7]
[404478480,1770186638176,-500.0,0.00034999,7]
[404478481,1770186638185,-500.0,0.00034999,7]
[404478482,1770186638194,-500.0,0.00034999,7]
[404478483,1770186638203,-500.0,0.00034999,7]
[404478484,1770186638212,-500.0,0.00034999,7]
[404478485,1770186638221,-500.0,0.00034999,7]
[404478486,1770186638231,-500.0,0.00034999,7]
[404478487,1770186638240,-500.0,0.00034999,7]
[404478488,1770186638249,-200.0,0.00034999,7]
[404478489,1770186638258,-8248.73029343,0.00035,5]
[404478490,1770186638269,-847.73401298,0.00035,5]
[404478491,1770186638284,-959.71484162,0.00035,5]
[404478936,1770186644779,-24209.07206546,0.00035,5]
[404478937,1770186644790,-7400.54410698,0.00035,5]
[404478951,1770186646391,-21745.35856773,0.00035,5]
[404478952,1770186646400,-165.76,0.00035,7]
[404478953,1770186646517,-3809.32140751,0.0003599,3]
[404478954,1770186646527,-20052.38446308,0.00036,30]
[404478955,1770186646536,-5018.35665415,0.00037173,2]
[404478956,1770186646546,-573.9748903,0.00037273,2]
[404478957,1770186646554,-422.941238,0.0003783,2]
[404478958,1770186646564,-3356.3048598,0.00039108,120]
[404478959,1770186646573,-168.0,0.00040806,5]
[404478960,1770186646583,-211.166532,0.00041577,120]
[404478961,1770186646603,-11244.31419832,0.00043165,2]
[404478962,1770186646613,-299.517358,0.00043165,120]
[404478963,1770186646623,-741.08018794,0.00043532,2]
[404478964,1770186646633,-3484.34748446,0.00045,120]
[404478965,1770186646643,-157.0,0.00045,90]
[404478966,1770186646653,-347.11476158,0.00045267,3]
[404478967,1770186646663,-541.67210511,0.00045267,3]
[404478968,1770186646675,-206.444744,0.00045315,60]
[404478969,1770186646685,-166.17,0.00045594,10]
[404478970,1770186646695,-767.36881558,0.00045604,2]
[404478971,1770186646706,-1726.57983505,0.00045604,2]
[404478972,1770186646716,-1506.56794748,0.00045604,2]
[404478973,1770186646726,-614.6823903,0.00045604,2]
[404478974,1770186646736,-1106.42830254,0.00045604,2]
[404478975,1770186646747,-194.83940585,0.00045604,2]
[404478976,1770186646758,-426.6539171,0.00045604,2]
[404478977,1770186646767,-191.84220389,0.00045604,2]
[404478978,1770186646777,-3809.32140751,0.00045749,4]
[404478979,1770186646787,-1388.45904633,0.00045759,3]
[404478980,1770186646797,-2166.68842045,0.00045759,3]
[404478981,1770186646807,-151.0,0.00045759,2]
[404478982,1770186646818,-1691.662189,0.00045759,120]
[404478983,1770186646827,-51.21742523,0.00045759,120]
[404478984,1770186646841,-925.61998,0.00045759,120]
[404478986,1770186790155,285.8284678,0.00013699,2]
[404478987,1770186797151,293.67009749,0.00013273,2]
[404478988,1770186917615,3327.4,0.00016,2]
[404478989,1770187084332,282.50586982,0.00013699,2]
[404478990,1770187639103,-1061.35565369,0.00032273,2]
[404478991,1770187639136,-995.23682775,0.00032273,2]
[404478993,1770187748096,-10045.99700859,0.00032273,2]
[404478994,1770187748118,-163.5624317,0.00037701,120]
[404478995,1770187748140,-300.0,0.00037801,15]
[404478996,1770187748162,-10097.91045171,0.00037802,2]
[404478997,1770187779279,963.13451334,0.00032273,2]
[404479005,1770187832328,-10722.9517877,0.00032273,2]
[404479007,1770187832338,-279.73541243,0.00037801,2]
[404479008,1770187832347,-19402.90087819,0.00037802,2]
[404479009,1770187832356,-741.08018794,0.00038825,2]
[404479010,1770187832365,-815.02123,0.00038939,2]
[404479011,1770187832374,-815.02123,0.00040579,2]
[404479012,1770187832383,-254.94367929,0.00041096,10]
[404479013,1770187832392,-815.02123,0.00042218,2]
[404479014,1770187832401,-281.0,0.00043451,2]
[404479015,1770187832410,-357.0,0.00043804,2]
[404479016,1770187832419,-815.02123,0.00043857,2]
[404479018,1770187832428,-6582.5207565,0.00043858,2]
[404479020,1770187832437,-150.0,0.00045,120]
[404479022,1770187832446,-1468.7589105,0.00045209,2]
[404479024,1770187832455,-815.02123,0.00045496,2]
[404479025,1770187832464,-1965.01666532,0.00045607,2]
[404479026,1770187832473,-350.36021959,0.00045607,2]
[404479027,1770187832483,-548.27963184,0.00045607,2]
[404479028,1770187832492,-3066.40578704,0.00045607,2]
[404479030,1770187832501,-219.8742302,0.00045607,2]
[404479032,1770187832510,-150.0,0.00045608,120]
[404479033,1770187832519,-256.72957006,0.00045759,3]
[404479034,1770187832528,-189.97389224,0.00045759,30]
[404479036,1770187832537,-289.71663274,0.00045759,3]
[404479037,1770187832546,-168.0,0.00045863,2]
[404479038,1770187832555,-150.0,0.00046,120]
[404479039,1770187832565,-206.444745,0.00046027,60]
[404479040,1770187832574,-4105.4347831,0.0004606,2]
[404479041,1770187832584,-4105.43478306,0.00046065,2]
[404479043,1770187832593,-209.61290886,0.00046068,18]
[404479044,1770187832602,-4105.43478306,0.00046069,2]
[404479045,1770187832612,-1802.36442931,0.00046074,2]
[404479046,1770187832624,-1234.94503828,0.00046074,2]
[404479047,1770187832635,-1068.12531547,0.00046074,2]
[404479048,1770187832644,-4105.43478306,0.00046078,2]
[404479049,1770187832767,-606.0998806,0.000461,30]
[404479050,1770187832777,-606.0998806,0.000461,30]
[404479051,1770187832786,-606.0998806,0.000461,30]
[404479052,1770187832795,-600.4180624,0.000461,30]
[404479053,1770187832804,-606.0998806,0.000461,30]
[404479054,1770187832814,-262.42261836,0.000461,30]
[404479055,1770187832824,-343.67726224,0.000461,30]
[404479056,1770187832834,-606.0998806,0.000461,30]
[404479057,1770187832842,-800.0,0.00046109,14]
[404479058,1770187832851,-1141.80796446,0.0004615,4]
[404479061,1770187838512,-850.97286022,0.0004615,4]
[404479468,1770187846589,-20.02923171,0.00046078,120]
[404479471,1770187933547,209.40801624,0.00013673,2]
[404479472,1770187989237,215.47765779,0.00013699,2]
[404479473,1770188109867,558.03838891,0.0001,2]
[404479474,1770188109893,3243.95161109,0.0001,2]
[404479475,1770188168726,7500.0,0.00039785,30]
[404479479,1770188835117,-814.35823369,0.00026581,2]
[404479480,1770188852087,-3691.86050615,0.00026581,2]
[404479481,1770188946330,501.22632834,0.00013699,2]
[404479482,1770188956108,-180.11046574,0.00024953,2]
[404479483,1770188956131,-10833.76693524,0.00026581,2]
[404479484,1770188956150,-211.470619,0.00037061,2]
[404479485,1770188956172,-1272.7724324,0.00039574,2]
[404479486,1770188956192,-151.0,0.00039785,120]
[404479487,1770188956213,-151.542,0.00039785,56]
[404479488,1770188956241,-2902.05706493,0.00039785,20]
[404479489,1770188956276,-526.30880573,0.00041185,2]
[404479490,1770188972099,-163.5624317,0.00036961,120]
[404479491,1770188972120,-817.68869899,0.00041185,2]
[404479502,1770189032481,-804.01911172,0.00039785,7]
[404479504,1770189032493,-3995.98088828,0.00039785,7]
[404479506,1770189032503,-2720.59832468,0.00041185,2]
[404479508,1770189032513,-1005.51878856,0.00042906,2]
[404479510,1770189032524,-3423.18049049,0.00042906,2]
[404479964,1770189045796,-1738.84058744,0.00042906,2]
[404479965,1770189045811,-4666.22706875,0.00042906,2]
[404479966,1770189045820,-4033.09596173,0.00044918,2]
[404479967,1770189045831,-1374.24950376,0.00044918,2]
[404480013,1770189545800,10000.0,0.000155,2]
[404480014,1770189562436,2895.0,0.000155,2]
[404480015,1770189578453,5514.52443169,0.000155,2]
[404480016,1770189581131,-662.89729949,0.000155,2]
[404480017,1770189584925,-507.89,0.000155,2]
[404480018,1770189586597,-903.06555515,0.000155,2]
[404480019,1770189590089,-1000.0,0.000155,2]
[404480020,1770189643172,-1590.19435344,0.00015345,2]
[404480021,1770189646391,-1411.92562657,0.00015345,2]
[404480022,1770189649830,-432.7937252,0.00015345,2]
[404480023,1770189654279,-177.0,0.00015345,2]
[404480024,1770189657827,-496.09880144,0.00015345,2]
[404480025,1770189660082,-891.98749335,0.00015345,2]
[404480026,1770189660105,-1108.01250665,0.000155,2]
[404480028,1770189924718,150.53,0.00030137,120]
[404480029,1770189925616,-507.89,0.00015345,2]
[404480031,1770190042151,-166.02138094,0.00015345,2]
[404480032,1770190042171,-302.61020702,0.000155,2]
[404480033,1770190042192,-391.15246639,0.00026849,2]
[404480034,1770190054089,-975.71241199,0.00026849,2]
[404480035,1770190064657,202.30586735,0.00039781,20]
[404480036,1770190103432,1548.61040064,0.00024108,120]
[404480038,1770190146092,-9534.7480618,0.0002,20]
[404480039,1770190146114,-10766.70089919,0.00025205,2]
[404480040,1770190146134,-900.0,0.00025469,3]
[404480041,1770190146155,-36443.62549133,0.00035,5]
[404480042,1770190146178,-1000.0,0.00036197,30]
[404480043,1770190146201,-172.93324542,0.00036457,120]
[404480044,1770190146223,-1109.2982287,0.00036557,2]
[404480045,1770190146246,-170.0,0.000397,120]
[404480046,1770190146267,-1356.85078285,0.00039781,2]
[404480047,1770190155136,-969.15759463,0.00039781,2]
[404480048,1770190164139,-956.98942023,0.00039781,2]
[404480049,1770190219496,1000.0,0.00039781,20]
[404480086,1770190231643,-1002.31568725,0.0003978,2]
[404480111,1770190235828,26829.78,0.00039781,120]
[404480163,1770190240108,-3e-08,0.0003978,2]
[404480243,1770190247369,-16.40448085,0.0003978,2]
[404480244,1770190247379,-2853.4665691,0.00039781,2]
[404480245,1770190249460,-2809.50687976,0.00039781,2]
[404480246,1770190249470,-299.31614309,0.00039781,2]
[404480247,1770190249479,-6895.95497716,0.00039781,2]
[404480249,1770190301537,200.0,0.00016438,2]
[404480252,1770190423662,-10417.61899783,0.00026849,2]
[404480253,1770190423683,-8683.9656715,0.00033546,2]
[404480254,1770190423703,-159.70375634,0.00037588,49]
[404480255,1770190423724,-1937.654651,0.00038918,2]
[404480256,1770190423746,-985.91643398,0.00039102,2]
[404480257,1770190423766,-395.37784075,0.00039102,2]
[404480258,1770190423787,-722.43904431,0.00039233,2]
[404480259,1770190423808,-432.3491925,0.00040117,2]
[404480260,1770190423837,-172.93324541,0.00040497,120]
[404480261,1770190423869,-442.4263907,0.00040597,2]
[404480262,1770190423890,-539.79293208,0.00041,120]
[404480263,1770190423911,-150.0,0.00041096,10]
[404480264,1770190423933,-250.0,0.00041644,10]
[404480265,1770190423953,-350.0,0.00042192,10]
[404480266,1770190423974,-255.89,0.0004263,60]
[404480267,1770190423994,-302.26510607,0.000427,120]
[404480268,1770190424015,-150.0,0.00043155,120]
[404480269,1770190424036,-301.98401854,0.00043163,31]
[404480270,1770190424059,-10417.61899783,0.00043165,2]
[404480271,1770190424079,-435.658515,0.00043165,90]
[404480272,1770190424099,-435.658515,0.00043165,90]
[404480273,1770190424120,-435.658515,0.00043165,90]
[404480274,1770190424140,-435.658515,0.00043165,90]
[404480275,1770190424165,-300.0,0.00043726,60]
[404480276,1770190424187,-151.0,0.00043828,2]
[404480277,1770190424208,-200.0,0.00044,120]
[404480278,1770190424229,-300.0,0.00044164,90]
[404480279,1770190424248,-5067.76474314,0.000445,20]
[404480280,1770190424269,-741.08018794,0.00044806,2]
[404480281,1770190424290,-217.7987035,0.00044818,2]
[404480282,1770190424310,-220.53,0.000449,2]
[404480283,1770190424332,-430.0,0.00044908,10]
[404480284,1770190424353,-7376.92188451,0.00044918,2]
[404480285,1770190424374,-151.0,0.00044918,2]
[404480286,1770190424394,-202.492918,0.00044918,120]
[404480287,1770190424415,-3119.771537,0.00044918,120]
[404480288,1770190424438,-3119.771537,0.00044918,120]
[404480289,1770190424461,-3119.771537,0.00044918,120]
[404480290,1770190424483,-3119.771537,0.00044918,120]
[404480291,1770190424503,-3820.445491,0.00044918,120]
[404480292,1770190424524,-3820.445491,0.00044918,120]
[404480293,1770190424549,-3820.445491,0.00044918,120]
[404480294,1770190424570,-3820.445491,0.00044918,120]
[404480295,1770190424591,-151.0,0.00044918,120]
[404480296,1770190424612,-268.265815,0.00044918,120]
[404480297,1770190424633,-151.0,0.00044918,120]
[404480298,1770190424653,-151.747196,0.00044918,120]
[404480299,1770190424674,-151.0,0.00044918,120]
[404480300,1770190424694,-151.0,0.00044918,120]
[404480301,1770190424714,-151.0,0.00044918,120]
[404480302,1770190424735,-151.0,0.00044918,120]
[404480303,1770190424755,-151.0,0.00044918,120]
[404480304,1770190424776,-151.0,0.00044918,120]
[404480305,1770190424800,-151.0,0.00044918,120]
[404480306,1770190424819,-151.0,0.00044918,120]
[404480307,1770190424840,-151.0,0.00044918,120]
[404480308,1770190424860,-151.0,0.00044918,120]
[404480309,1770190424885,-151.0,0.00044918,120]
[404480310,1770190424907,-187.520557,0.00044918,120]
[404480311,1770190424931,-151.0,0.00044918,120]
[404480312,1770190424954,-151.0,0.00044918,120]
[404480313,1770190424976,-167.585742,0.00044918,120]
[404480314,1770190424997,-151.0,0.00044918,120]
[404480315,1770190425018,-151.0,0.00044918,120]
[404480316,1770190425043,-151.0,0.00044918,120]
[404480317,1770190425063,-435.658515,0.00044918,90]
[404480318,1770190425084,-435.658515,0.00044918,90]
[404480319,1770190425104,-435.658515,0.00044918,90]
[404480320,1770190425124,-435.658515,0.00044918,90]
[404480321,1770190425144,-435.658515,0.00044918,90]
[404480322,1770190425164,-435.658515,0.00044918,90]
[404480323,1770190425185,-435.658515,0.00044918,90]
[404480324,1770190425349,-435.658515,0.00044918,90]
[404480325,1770190425371,-435.658515,0.00044918,90]
[404480326,1770190425392,-435.658515,0.00044918,90]
[404480327,1770190425414,-435.658515,0.00044918,90]
[404480328,1770190425434,-435.658515,0.00044918,90]
[404480329,1770190425454,-408.13713278,0.0004492,7]
[404480330,1770190425475,-150.0,0.00045,120]
[404480331,1770190425496,-168.37607139,0.00045,120]
[404480332,1770190425515,-209.61290888,0.00045078,17]
[404480333,1770190425539,-217.79870346,0.00045086,2]
[404480334,1770190425561,-177.0,0.00045155,120]
[404480335,1770190425581,-516.0,0.00045168,10]
[404480336,1770190425601,-606.0998806,0.00045178,30]
[404480337,1770190425621,-606.0998806,0.00045178,30]
[404480338,1770190425654,-606.0998806,0.00045178,30]
[404480339,1770190425677,-606.0998806,0.000452,30]
[404480340,1770190425699,-606.0998806,0.00045278,30]
[404480341,1770190425721,-606.0998806,0.00045278,30]
[404480342,1770190425743,-606.0998806,0.000453,30]
[404480343,1770190425765,-606.0998806,0.000453,30]
[404480344,1770190425787,-606.0998806,0.000453,30]
[404480345,1770190425811,-217.79870346,0.00045354,2]
[404480346,1770190425833,-500.0,0.0004537,90]
[404480347,1770190425855,-435.658515,0.00045378,90]
[404480348,1770190425880,-435.658515,0.00045378,90]
[404480349,1770190425903,-435.658515,0.00045378,90]
[404480350,1770190425925,-606.0998806,0.00045378,30]
[404480351,1770190425949,-337.35250298,0.00045507,2]
[404480352,1770190425971,-498.7035688,0.00045507,2]
[404480353,1770190425993,-527.62828507,0.00045507,2]
[404480354,1770190426014,-396.88236072,0.00045507,2]
[404480355,1770190426034,-217.79870346,0.00045621,2]
[404480356,1770190426056,-245.9985741,0.000457,30]
[404480357,1770190426078,-158.91303208,0.00045759,3]
[404480358,1770190426099,-186.95512487,0.00045759,3]
[404480359,1770190426120,-657.11529065,0.00045759,3]
[404480360,1770190426140,-1385.514,0.00045769,2]
[404480361,1770190426163,-635.832,0.00045769,2]
[404480362,1770190426186,-718.0,0.00045769,2]
[404480363,1770190426208,-606.0998806,0.000458,30]
[404480364,1770190426231,-1003.7715408,0.000458,30]
[404480365,1770190426251,-151.0,0.000458,120]
[404480366,1770190426272,-151.0,0.000458,120]
[404480367,1770190426293,-151.0,0.000458,120]
[404480368,1770190426314,-180.02689,0.000458,120]
[404480369,1770190426335,-217.79870346,0.00045889,2]
[404480370,1770190426355,-606.0998806,0.000459,30]
[404480371,1770190426376,-1529.99174758,0.00045959,4]
[404480372,1770190426398,-3059.98349516,0.00045969,4]
[404480373,1770190426420,-178.08086,0.00045969,120]
[404480374,1770190426441,-595.445513,0.00045969,28]
[404480375,1770190426463,-595.445513,0.00045969,28]
[404480376,1770190426483,-595.445513,0.00045969,28]
[404480377,1770190426504,-595.445513,0.00045969,28]
[404480378,1770190426525,-151.0,0.00045969,2]
[404480379,1770190426547,-3119.771537,0.00045969,120]
[404480380,1770190426568,-151.0,0.00045969,120]
[404480381,1770190426588,-151.0,0.00045969,120]
[404480382,1770190426610,-3119.771537,0.00045969,120]
[404480383,1770190426631,-151.0,0.00045969,120]
[404480384,1770190426652,-3119.771537,0.00045969,120]
[404480385,1770190426673,-3119.771537,0.00045969,120]
[404480386,1770190426693,-3820.445491,0.00045969,120]
[404480387,1770190426712,-3820.445491,0.00045969,120]
[404480388,1770190426733,-3820.445491,0.00045969,120]
[404480389,1770190426753,-3820.445491,0.00045969,120]
[404480390,1770190426773,-151.0,0.00045969,120]
[404480391,1770190426796,-151.0,0.00045969,120]
[404480392,1770190426815,-151.0,0.00045969,120]
[404480393,1770190426836,-151.0,0.00045969,120]
[404480394,1770190426856,-151.0,0.0004597,120]
[404480395,1770190426879,-1529.99174758,0.0004597,4]
[404480396,1770190426899,-343.16,0.00045979,30]
[404480397,1770190426924,-285.97,0.00045979,30]
[404480398,1770190426946,-238.31,0.00045979,30]
[404480399,1770190426966,-198.59,0.00045979,30]
[404480400,1770190426990,-165.49,0.00045979,30]
[404480401,1770190427011,-827.49,0.00045979,30]
[404480402,1770190427034,-250.689288,0.00045979,120]
[404480403,1770190427054,-151.0,0.00045979,60]
[404480404,1770190427073,-151.0,0.00045979,60]
[404480405,1770190427093,-151.0,0.00045979,120]
[404480406,1770190427112,-151.0,0.00045979,120]
[404480407,1770190427131,-200.307543,0.00045979,120]
[404480408,1770190427151,-151.0,0.00045979,120]
[404480409,1770190427171,-151.0,0.00045979,120]
[404480410,1770190427191,-151.0,0.00045979,120]
[404480411,1770190427212,-151.0,0.00045979,120]
[404480412,1770190427232,-595.445513,0.00045979,28]
[404480413,1770190427252,-595.445513,0.00045979,28]
[404480414,1770190427274,-595.445513,0.00045979,28]
[404480415,1770190427294,-595.445513,0.00045979,28]
[404480416,1770190427314,-595.445513,0.00045979,28]
[404480417,1770190427334,-595.445513,0.00045979,28]
[404480418,1770190427354,-595.445513,0.00045979,28]
[404480419,1770190427374,-595.445513,0.00045979,28]
[404480420,1770190427401,-595.445513,0.00045979,28]
[404480421,1770190427438,-595.445513,0.00045979,28]
[404480422,1770190427461,-595.445513,0.00045979,28]
[404480423,1770190427484,-595.445513,0.00045979,28]
[404480424,1770190427507,-151.0,0.00045979,2]
[404480425,1770190427532,-206.37497,0.00045979,2]
[404480426,1770190427556,-3119.771537,0.00045979,120]
[404480427,1770190427579,-151.0,0.00045979,120]
[404480428,1770190427602,-3119.771537,0.00045979,120]
[404480429,1770190427623,-151.0,0.00045979,120]
[404480430,1770190427644,-3119.771537,0.00045979,120]
[404480431,1770190427664,-151.0,0.00045979,120]
[404480432,1770190427685,-151.0,0.00045979,120]
[404480433,1770190427706,-3119.771537,0.00045979,120]
[404480434,1770190427726,-151.0,0.00045979,120]
[404480435,1770190427747,-3119.771537,0.00045979,120]
[404480436,1770190427767,-151.0,0.00045979,120]
[404480437,1770190427789,-3119.771537,0.00045979,120]
[404480438,1770190427809,-151.0,0.00045979,120]
[404480439,1770190427831,-3119.771537,0.00045979,120]
[404480440,1770190427852,-151.0,0.00045979,120]
[404480441,1770190427876,-151.0,0.00045979,120]
[404480442,1770190427898,-3119.771537,0.00045979,120]
[404480443,1770190427919,-3119.771537,0.00045979,120]
[404480444,1770190427943,-3119.771537,0.00045979,120]
[404480445,1770190427968,-3119.771537,0.00045979,120]
[404480446,1770190427998,-3119.771544,0.00045979,120]
[404480447,1770190428020,-2566.07899059,0.00045979,120]
[404480448,1770190651444,-9478.74606626,0.00026849,2]
[404480449,1770190651457,-1042.50786748,0.00026849,2]
[404480450,1770190651466,-741.08018794,0.00027655,2]
[404480451,1770190772941,741.08018794,0.00035,2]
[404480452,1770190797159,741.08018794,0.00028,3]
[404480453,1770190798470,741.08018794,0.00028,7]
[404480454,1770190799245,741.08018794,0.00028,3]
[404480455,1770190799646,741.08018794,0.00028,7]
[404480456,1770190800075,741.08018794,0.00028,3]
[404480458,1770191008989,15553.51887236,0.00035,2]
[404480460,1770191233105,-1214.72822254,0.00026849,2]
[404480461,1770191249089,-993.27826765,0.00026849,2]
[404480462,1770191348094,-10088.90243456,0.00026849,2]
[404480463,1770191348117,-8656.5485708,0.00035412,2]
[404480464,1770191348140,-1141.816774,0.00039059,2]
[404480465,1770191348163,-741.08018794,0.00039644,2]
[404480466,1770191348184,-224.85714062,0.00040703,2]
[404480467,1770191366167,-916.95963338,0.00040703,2]
[404480468,1770191366188,-30.35294521,0.00041096,31]
[404480479,1770191439870,-359.417574,0.000369,2]
[404480480,1770191439879,-26563.58734355,0.00039752,2]
[404480481,1770191439888,-391.50961122,0.00042347,2]
[404480499,1770191445268,-750.30716278,0.00042347,2]
[404480500,1770191445278,-202.28292942,0.00042989,31]
[404480501,1770191445288,-7224.84,0.0004299,30]
[404480502,1770191445298,-1823.48030782,0.0004299,30]
[404480529,1770191446369,-19.77872642,0.00039752,2]
[404480542,1770191693390,-9916.5421488,0.00026849,2]
[404480543,1770191710843,166.9157024,0.00026849,2]
[404480544,1770191741546,5000.0,0.00025,2]
[404480545,1770191887248,500.0,0.00013699,2]
[404480546,1770191887308,500.0,0.00014247,2]
[404480547,1770191887590,164.73608546,0.00016438,2]
[404480548,1770191890186,500.0,0.00013699,2]
[404480549,1770191890227,814.07051221,0.00014247,2]
[404480550,1770191890329,502.45202744,0.00013699,2]
[404480551,1770191894669,499.99,0.00013273,2]
[404480552,1770191923319,303.10001603,0.000189,2]
[404480553,1770191923368,303.10001603,0.00019089,2]
[404480554,1770191947487,501.09816142,0.00013699,2]
[404480555,1770191947620,500.0,0.00013699,2]
[404480556,1770191947673,500.64282011,0.00014247,2]
[404480557,1770191947823,500.0,0.00013699,2]
[404480558,1770191947856,1000.0,0.00014247,2]
[404480559,1770191948060,670.00963641,0.00015342,2]
[404480560,1770191948166,1500.0,0.00014795,2]
[404480561,1770191957025,500.0,0.00013699,2]
[404480562,1770191957074,510.00194982,0.00014247,2]
[404480563,1770192005077,150.0,0.00016438,2]
[404480564,1770192005137,295.74048701,0.00016986,2]
[404480566,1770192008704,500.0,0.00013273,2]
[404480567,1770192008733,500.0,0.00013699,2]
[404480568,1770192008764,1000.0,0.00013821,2]
[404480569,1770192008823,1500.0,0.00014368,2]
[404480570,1770192008883,785.05828806,0.00014916,2]
[404480571,1770192008917,691.04988946,0.00014916,2]
[404480572,1770192066508,500.0,0.00013699,2]
[404480573,1770192066632,299.43923711,0.00014247,2]
[404480574,1770192066682,631.49670971,0.00013699,2]
[404480575,1770192066903,502.78626778,0.00014247,2]
[404480576,1770192067044,500.0,0.00013699,2]
[404480578,1770192157029,-200.0,0.00016438,2]
[404480579,1770192157058,-300.0,0.00026846,2]
[404480580,1770192157088,-8558.85846531,0.00026847,2]
[404480581,1770192185213,500.0,0.00013699,2]
[404480582,1770192185247,413.21960917,0.00014247,2]
[404480583,1770192185558,446.75001853,0.00013273,2]
[404480584,1770192326254,-2739.0356266,0.00016111,2]
[404480585,1770192326277,-720.0,0.00016274,2]
[404480586,1770192326298,-43.5665367,0.00016438,2]
[404480587,1770192341368,331.16,0.00015,2]
[404480588,1770192363702,500.0,0.00013699,2]
[404480589,1770192363736,500.54073988,0.00014247,2]
[404480590,1770192419826,-519.07,0.00015559,2]
[404480591,1770192419853,-156.4334633,0.00016438,2]
[404480592,1770192419879,-150.0,0.00016438,2]
[404480593,1770192419905,-155.44129246,0.00016438,2]
[404480594,1770192419932,-177.0,0.00018438,2]
[404480595,1770192419958,-204.0,0.00020438,2]
[404480596,1770192419984,-231.0,0.00022438,2]
[404480597,1770192420012,-258.0,0.00024438,2]
[404480598,1770192429131,-285.0,0.00026438,2]
[404480599,1770192429154,-300.0,0.00026846,2]
[404480600,1770192429175,-2837.0022823,0.00026847,2]
[404480601,1770192461551,151.0,0.00039895,120]
[404480602,1770192461849,151.0,0.00039895,120]
[404480603,1770192462146,151.0,0.00039895,120]
[404480604,1770192462507,291.312354,0.00039895,120]
[404480605,1770192481929,2902.05706493,0.00025,2]
[404480606,1770192484851,500.2543677,0.00013699,2]
[404480607,1770192517914,151.0,0.00039895,120]
[404480608,1770192518375,151.0,0.00039895,120]
[404480609,1770192518711,151.0,0.00039895,120]
[404480610,1770192519016,151.0,0.00039895,120]
[404480611,1770192519451,151.0,0.00039895,120]
[404480612,1770192519742,151.0,0.00039895,120]
[404480613,1770192520033,151.0,0.00039895,120]
[404480614,1770192520329,151.0,0.00039895,120]
[404480615,1770192520666,151.0,0.00039895,120]
[404480616,1770192520973,151.0,0.00039895,120]
[404480617,1770192521383,151.0,0.00039895,120]
[404480618,1770192521692,151.0,0.00039895,120]
[404480619,1770192521985,151.0,0.00039895,120]
[404480620,1770192522494,151.0,0.00039895,120]
[404480621,1770192522781,151.0,0.00039895,120]
[404480622,1770192523080,151.0,0.00039895,120]